[Event "RUS-ch Men Blitz 2019"]
[Site "Sochi"]
[Date "2019.10.17"]
[Round "4.21"]
[White "Chizhikov, Vladislav"]
[Black "Golubov, Saveliy"]
[Result "0-1"]
[ECO "B40"]
[WhiteElo "2273"]
[BlackElo "2469"]
[Annotator "ChessBase"]
[PlyCount "100"]
[EventDate "2019.10.17"]
[EventType "swiss"]
[EventCountry "RUS"]
[SourceTitle "playchess.com"]
[Source "ChessBase"]
[SourceQuality "1"]
[TimeControl "180+2"]

1. e4 {[%emt 0:00:00]} c5 {[%emt 0:00:00]} 2. Nf3 {[%emt 0:00:00]} e6 {[%emt 0:00:00]} 3. b3 {[%emt 0:00:02]} a6 {[%emt 0:00:01]} 4. Bb2 {[%emt 0:00:01]} d5 {[%emt 0:00:00]} 5. exd5 {[%emt 0:00:01]} exd5 {[%emt 0:00:01]} 6. d4 {[%emt 0:00:02]} Nf6 {[%emt 0:00:01]} 7. Be2 {[%emt 0:00:02]} Nc6 {[%emt 0:00:01]} 8. O-O {[%emt 0:00:01]} Be7 {[%emt 0:00:01]} 9. dxc5 {[%emt 0:00:04]} Bxc5 {[%emt 0:00:01]} 10. Nd4 {[%emt 0:00:02]} O-O {[%emt 0:00:03]} 11. Bf3 {[%emt 0:00:01]} Ne5 {[%emt 0:00:07]} 12. Be2 {[%emt 0:00:13]} Ne4 {[%emt 0:00:03]} 13. Nc3 {[%emt 0:00:07]} Re8 {[%emt 0:00:12]} 14. Nxe4 {[%emt 0:00:14]} dxe4 {[%emt 0:00:02]} 15. Qd2 {[%emt 0:00:23]} Bg4 {[%emt 0:00:10]} 16. Bxg4 {[%emt 0:00:07]} Nxg4 {[%emt 0:00:02]} 17. Qf4 {[%emt 0:00:08]} Bxd4 {[%emt 0:00:27]} 18. Bxd4 {[%emt 0:00:03]} Qxd4 {[%emt 0:00:01]} 19. Qxg4 {[%emt 0:00:02]} Qc3 {[%emt 0:00:00]} 20. Rfe1 {[%emt 0:00:20]} Qxc2 {[%emt 0:00:09]} 21. Re2 {[%emt 0:00:01]} Qc6 {[%emt 0:00:03]} 22. Rae1 {[%emt 0:00:02]} Re5 {[%emt 0:00:25]} 23. h4 {[%emt 0:00:37]} Rae8 {[%emt 0:00:08]} 24. Qf4 {[%emt 0:00:02]} h6 {[%emt 0:00:39]} 25. Rc1 {[%emt 0:00:02]} Qb6 {[%emt 0:00:01]} 26. Re3 {[%emt 0:00:03]} Qd8 {[%emt 0:00:22]} 27. Rc4 {[%emt 0:00:10]} Qe7 {[%emt 0:00:18]} 28. Rec3 {[%emt 0:00:24]} b5 {[%emt 0:00:33]} 29. Rc7 {[%emt 0:00:02]} Qf8 {[%emt 0:00:01]} 30. Rg3 {[%emt 0:00:04]} R5e6 {[%emt 0:00:01]} 31. Ra7 {[%emt 0:00:02]} R8e7 {[%emt 0:00:05]} 32. Qe3 {[%emt 0:00:20]} Rxa7 {[%emt 0:00:01]} 33. Qxa7 {[%emt 0:00:01]} Qe7 {[%emt 0:00:01]} 34. Qd4 {[%emt 0:00:04]} Re5 {[%emt 0:00:05]} 35. Re3 {[%emt 0:00:04]} f6 {[%emt 0:00:01]} 36. g3 {[%emt 0:00:04]} Kh7 {[%emt 0:00:01]} 37. Qc3 {[%emt 0:00:02]} Qd6 {[%emt 0:00:02]} 38. Qc2 {[%emt 0:00:01]} f5 {[%emt 0:00:00]} 39. Qc8 {[%emt 0:00:02]} Rc5 {[%emt 0:00:02]} 40. Qe8 {[%emt 0:00:07]} Rc1+ {[%emt 0:00:01]} 41. Kg2 {[%emt 0:00:05]} Qd1 {[%emt 0:00:01]} 42. g4 {[%emt 0:00:01]} Qg1+ {[%emt 0:00:03]} 43. Kh3 {[%emt 0:00:01]} Qxg4+ {[%emt 0:00:03]} 44. Kh2 {[%emt 0:00:00]} Qxh4+ {[%emt 0:00:03]} 45. Kg2 {[%emt 0:00:01]} Qh1+ {[%emt 0:00:04]} 46. Kg3 {[%emt 0:00:01]} Rg1+ {[%emt 0:00:01]} 47. Kf4 {[%emt 0:00:01]} Qh4+ {[%emt 0:00:01]} 48. Ke5 {[%emt 0:00:01]} Qf6+ {[%emt 0:00:02]} 49. Kd5 {[%emt 0:00:03]} Rd1+ {[%emt 0:00:01]} 50. Kc5 {[%emt 0:00:00]} Qd6# {[%emt 0:00:01] Kd4} 0-1

[Event "RUS-ch Men Blitz 2019"]
[Site "Sochi"]
[Date "2019.10.17"]
[Round "4.28"]
[White "Lugovskoy, Maxim"]
[Black "Chekletsov, Ilya"]
[Result "1-0"]
[ECO "A45"]
[WhiteElo "2436"]
[BlackElo "2377"]
[Annotator "NA RC"]
[PlyCount "125"]
[EventDate "2019.10.17"]
[EventType "swiss"]
[EventCountry "RUS"]
[SourceTitle "playchess.com"]
[Source "ChessBase"]
[SourceQuality "1"]
[TimeControl "180+2"]

1. d4 {[%emt 0:00:00]} Nf6 {[%emt 0:00:00]} 2. Nc3 {[%emt 0:00:00]} d5 {[%emt 0:00:14]} 3. Bf4 {[%emt 0:00:01]} g6 {[%emt 0:00:05]} 4. e3 {[%emt 0:00:02]} Bg7 {[%emt 0:00:02]} 5. Nf3 {[%emt 0:00:01]} O-O {[%emt 0:00:10]} 6. Ne5 {[%emt 0:00:02]} c6 {[%emt 0:00:07]} 7. Be2 {[%emt 0:00:01]} Nfd7 {[%emt 0:00:02]} 8. Qd2 {[%emt 0:00:16]} Nxe5 {[%emt 0:00:05]} 9. Bxe5 {[%emt 0:00:01]} f6 {[%emt 0:00:20]} 10. Bg3 {[%emt 0:00:01]} e5 {[%emt 0:00:02]} 11. h4 {[%emt 0:00:02]} Be6 {[%emt 0:00:12]} 12. h5 {[%emt 0:00:02]} Nd7 {[%emt 0:00:05]} 13. hxg6 {[%emt 0:00:01]} hxg6 {[%emt 0:00:02]} 14. O-O-O {[%emt 0:00:02]} Qe7 {[%emt 0:00:09]} 15. f3 {[%emt 0:00:02]} f5 {[%emt 0:00:11]} 16. f4 {[%emt 0:00:07]} exd4 {[%emt 0:00:07]} 17. exd4 {[%emt 0:00:01]} Nf6 {[%emt 0:00:01]} 18. Bh4 {[%emt 0:00:01]} Qd6 {[%emt 0:00:08]} 19. Bf3 {[%emt 0:00:09]} Ne4 {[%emt 0:00:03]} 20. Bxe4 {[%emt 0:00:01]} dxe4 {[%emt 0:00:04]} 21. g4 {[%emt 0:00:01]} Kf7 {[%emt 0:00:31]} 22. gxf5 {[%emt 0:00:02]} Bxf5 {[%emt 0:00:01]} 23. Qe3 {[%emt 0:00:02]} Rae8 {[%emt 0:00:09]} 24. Kb1 {[%emt 0:00:01]} a6 {[%emt 0:00:03]} 25. Ne2 {[%emt 0:00:08]} Rh8 {[%emt 0:00:05]} 26. Ng3 {[%emt 0:00:05]} Qd5 {[%emt 0:00:04]} 27. Nxf5 {[%emt 0:00:07]} Qxf5 {[%emt 0:00:05]} 28. Qb3+ {[%emt 0:00:01]} Kf8 {[%emt 0:00:23]} 29. d5 {[%emt 0:00:09]} e3 {[%emt 0:00:07]} 30. d6 {[%emt 0:00:11]} e2 31. Rde1 Qd5 {[%emt 0:00:07]} 32. Be7+ {[%emt 0:00:09]} Kf7 {[%emt 0:00:06]} 33. Qxd5+ {[%emt 0:00:40]} cxd5 {[%emt 0:00:01]} 34. d7 {[%emt 0:00:07]} Rxe7 {[%emt 0:00:12]} 35. Rxh8 {[%emt 0:00:01]} Rxd7 {[%emt 0:00:04]} 36. Rh2 {[%emt 0:00:01]} d4 {[%emt 0:00:01]} 37. Rhxe2 {[%emt 0:00:02]} Bf6 {[%emt 0:00:01]} 38. Rd2 {[%emt 0:00:03]} Rd8 {[%emt 0:00:02]} 39. a3 {[%emt 0:00:03]} Rh8 {[%emt 0:00:01]} 40. Rd3 {[%emt 0:00:03]} Rh4 {[%emt 0:00:01]} 41. Rf1 {[%emt 0:00:00]} Ke6 {[%emt 0:00:01]} 42. a4 {[%emt 0:00:01]} b5 {[%emt 0:00:02]} 43. axb5 {[%emt 0:00:02]} axb5 {[%emt 0:00:01]} 44. Rb3 {[%emt 0:00:02]} Rh5 {[%emt 0:00:01]} 45. Re1+ {[%emt 0:00:06]} Kd6 {[%emt 0:00:00]} 46. Ra3 {[%emt 0:00:01]} Rf5 {[%emt 0:00:08]} 47. Ra6+ {[%emt 0:00:02]} Kc5 {[%emt 0:00:02]} 48. Ree6 {[%emt 0:00:05]} Bh4 {[%emt 0:00:01]} 49. Re5+ {[%emt 0:00:18]} Rxe5 {[%emt 0:00:00]} 50. fxe5 g5 51. Rg6 {[%emt 0:00:12]} Kd5 {[%emt 0:00:02]} 52. e6 {[%emt 0:00:00]} Kd6 {[%emt 0:00:00]} 53. Kc1 {[%emt 0:00:02]} Bg3 {[%emt 0:00:03]} 54. Kd2 {[%emt 0:00:02]} Bf4+ {[%emt 0:00:04]} 55. Kd3 {[%emt 0:00:00]} Be3 {[%emt 0:00:01]} 56. b4 {[%emt 0:00:19]} Ke7 {[%emt 0:00:08]} 57. c3 {[%emt 0:00:00]} Bf2 {[%emt 0:00:03]} 58. cxd4 {[%emt 0:00:03]} Be1 {[%emt 0:00:01]} 59. Rxg5 {[%emt 0:00:05]} Bxb4 {[%emt 0:00:01]} 60. Rxb5 {[%emt 0:00:01]} Bd6 {[%emt 0:00:02]} 61. d5 {[%emt 0:00:01]} Be5 {[%emt 0:00:01]} 62. Ke4 {[%emt 0:00:02]} Bh2 {[%emt 0:00:01]} 63. Rb7+ {[%emt 0:00:01]} 1-0

[Event "RUS-ch Men Blitz 2019"]
[Site "Sochi"]
[Date "2019.10.17"]
[Round "4.31"]
[White "Derjabin, Ilja"]
[Black "Frolov, Aleksey G."]
[Result "1-0"]
[ECO "D80"]
[WhiteElo "2333"]
[BlackElo "2093"]
[Annotator "RC"]
[PlyCount "81"]
[EventDate "2019.10.17"]
[EventType "swiss"]
[EventCountry "RUS"]
[SourceTitle "playchess.com"]
[Source "ChessBase"]
[SourceQuality "1"]
[TimeControl "180+2"]

1. d4 Nf6 2. c4 g6 3. Nc3 d5 4. Bg5 Ne4 5. Bh4 Nxc3 6. bxc3 dxc4 7. Nf3 Bg7 8. e3 b5 9. a4 c6 10. Be2 Bb7 11. Qb1 a6 12. Bxc4 Qa5 13. O-O Qc7 14. Bg3 Qc8 15. Bb3 O-O 16. c4 Nd7 17. axb5 axb5 18. Rxa8 Qxa8 19. c5 Qa3 20. Qc2 Nf6 21. Ne5 e6 22. h3 Ra8 23. Rb1 Nd5 24. Bxd5 exd5 25. Qd1 Qa2 26. Rc1 Qb2 27. Rb1 Qa2 28. Rc1 Qb2 29. Kh2 Ra6 30. Rb1 Qa2 31. Nd3 Ra8 32. Be5 Bc8 33. Bxg7 Kxg7 34. Rb2 Qa3 35. Rd2 Bf5 36. Ne5 Rc8 37. Qf3 f6 38. Ng4 Qc1 39. Ra2 Rc7 40. Qf4 Rf7 41. Qh6+ 1-0

[Event "RUS-ch Men Blitz 2019"]
[Site "Sochi"]
[Date "2019.10.20"]
[Round "5.2"]
[White "Zakhartsov, Vladimir"]
[Black "Yuffa, Daniil"]
[Result "0-1"]
[ECO "A45"]
[WhiteElo "2514"]
[BlackElo "2577"]
[Annotator "ChessBase"]
[PlyCount "88"]
[EventDate "2019.10.17"]
[EventType "swiss"]
[EventCountry "RUS"]
[SourceTitle "playchess.com"]
[Source "ChessBase"]
[SourceQuality "1"]
[TimeControl "180+2"]

1. d4 {[%emt 0:00:00]} Nf6 {[%emt 0:00:00]} 2. g3 {[%emt 0:00:01]} c5 {[%emt 0:00:03]} 3. d5 {[%emt 0:00:03]} g6 {[%emt 0:00:01]} 4. Bg2 {[%emt 0:00:01]} Bg7 {[%emt 0:00:01]} 5. Nc3 {[%emt 0:00:06]} O-O {[%emt 0:00:02]} 6. e4 {[%emt 0:00:19]} d6 {[%emt 0:00:01]} 7. Nge2 {[%emt 0:00:02]} Na6 {[%emt 0:00:02]} 8. O-O {[%emt 0:00:02]} Nc7 {[%emt 0:00:01]} 9. a4 {[%emt 0:00:02]} b6 {[%emt 0:00:06]} 10. h3 {[%emt 0:00:09]} a6 {[%emt 0:00:05]} 11. Bf4 {[%emt 0:00:06]} Rb8 {[%emt 0:00:11]} 12. e5 {[%emt 0:00:26]} Nh5 {[%emt 0:00:01]} 13. exd6 {[%emt 0:00:02]} exd6 {[%emt 0:00:14]} 14. Be3 {[%emt 0:00:00]} b5 {[%emt 0:00:05]} 15. axb5 {[%emt 0:00:04]} axb5 {[%emt 0:00:01]} 16. Nf4 {[%emt 0:00:30]} Nf6 {[%emt 0:00:12]} 17. Qc1 {[%emt 0:00:09]} b4 {[%emt 0:00:03]} 18. Nce2 {[%emt 0:00:15]} Re8 {[%emt 0:00:05]} 19. c3 {[%emt 0:00:07]} bxc3 {[%emt 0:00:22]} 20. Nxc3 {[%emt 0:00:01]} Ba6 {[%emt 0:00:12]} 21. Rd1 {[%emt 0:00:03]} Bc4 {[%emt 0:00:04]} 22. Qd2 {[%emt 0:00:28]} Bb3 {[%emt 0:00:07]} 23. Re1 {[%emt 0:00:02]} Nb5 {[%emt 0:00:25]} 24. Nxb5 {[%emt 0:00:13]} Rxb5 {[%emt 0:00:01]} 25. Ne2 {[%emt 0:00:04]} Ne4 {[%emt 0:00:13]} 26. Bxe4 {[%emt 0:00:05]} Rxe4 {[%emt 0:00:02]} 27. Nc3 {[%emt 0:00:01]} Bxc3 {[%emt 0:00:08]} 28. Qxc3 {[%emt 0:00:01]} Bxd5 {[%emt 0:00:29]} 29. Bh6 {[%emt 0:00:06]} Rd4 {[%emt 0:00:01]} 30. Ra6 {[%emt 0:00:16]} Rb8 {[%emt 0:00:14]} 31. Ra7 {[%emt 0:00:13]} Qf6 {[%emt 0:00:11]} 32. h4 {[%emt 0:00:03]} Qf5 {[%emt 0:00:05]} 33. Qe3 {[%emt 0:00:02]} Re4 {[%emt 0:00:03]} 34. Qc3 {[%emt 0:00:01]} Rxe1+ {[%emt 0:00:04]} 35. Qxe1 {[%emt 0:00:01]} Qf3 {[%emt 0:00:02]} 36. Kf1 {[%emt 0:00:04]} Qg2+ {[%emt 0:00:04]} 37. Ke2 {[%emt 0:00:01]} Re8+ {[%emt 0:00:01]} 38. Be3 {[%emt 0:00:01]} Qe4 {[%emt 0:00:04]} 39. Qc3 {[%emt 0:00:03]} Bc4+ {[%emt 0:00:05]} 40. Kd2 {[%emt 0:00:02]} d5 {[%emt 0:00:01]} 41. b3 {[%emt 0:00:03]} d4 {[%emt 0:00:02]} 42. Qxc4 {[%emt 0:00:01]} dxe3+ {[%emt 0:00:01]} 43. fxe3 {[%emt 0:00:01]} Qxe3+ {[%emt 0:00:02]} 44. Kc2 {[%emt 0:00:04]} Qf2+ {[%emt 0:00:01]} 0-1

[Event "RUS-ch Men Blitz 2019"]
[Site "Sochi"]
[Date "2019.10.17"]
[Round "5.3"]
[White "Drygalov, Andrey"]
[Black "Nozdrachev, Vladislav"]
[Result "1-0"]
[ECO "C54"]
[WhiteElo "2484"]
[BlackElo "2494"]
[Annotator "ChessBase"]
[PlyCount "109"]
[EventDate "2019.10.17"]
[EventType "swiss"]
[EventCountry "RUS"]
[SourceTitle "playchess.com"]
[Source "ChessBase"]
[SourceQuality "1"]
[TimeControl "180+2"]

1. e4 {[%emt 0:00:00]} e5 {[%emt 0:00:00]} 2. Nf3 {[%emt 0:00:00]} Nc6 3. Bc4 Bc5 {[%emt 0:00:01]} 4. c3 {[%emt 0:00:00]} Nf6 5. d3 d6 {[%emt 0:00:03]} 6. O-O {[%emt 0:00:03]} a6 {[%emt 0:00:00]} 7. a4 {[%emt 0:00:01]} Ba7 {[%emt 0:00:01]} 8. Re1 {[%emt 0:00:01]} O-O {[%emt 0:00:05]} 9. h3 {[%emt 0:00:06]} Ne7 {[%emt 0:00:01]} 10. Nbd2 {[%emt 0:00:11]} Ng6 {[%emt 0:00:05]} 11. Nf1 {[%emt 0:00:01]} Nh5 {[%emt 0:00:10]} 12. d4 {[%emt 0:00:11]} Nhf4 {[%emt 0:00:21]} 13. Ng3 {[%emt 0:00:07]} Qf6 {[%emt 0:00:11]} 14. Nh5 {[%emt 0:00:08]} Qe7 {[%emt 0:00:34]} 15. Nxf4 {[%emt 0:00:01]} Nxf4 {[%emt 0:00:02]} 16. Bxf4 {[%emt 0:00:04]} exf4 {[%emt 0:00:01]} 17. e5 {[%emt 0:00:21]} Bf5 {[%emt 0:00:25]} 18. Qd2 {[%emt 0:00:08]} dxe5 {[%emt 0:00:04]} 19. Rxe5 {[%emt 0:00:06]} Qf6 {[%emt 0:00:20]} 20. Qxf4 {[%emt 0:00:04]} Bxh3 {[%emt 0:00:07]} 21. Qxf6 {[%emt 0:00:13]} gxf6 {[%emt 0:00:01]} 22. Re7 {[%emt 0:00:01]} Bg4 {[%emt 0:00:06]} 23. Rxc7 {[%emt 0:00:06]} Rac8 {[%emt 0:00:34]} 24. Rxb7 {[%emt 0:00:36]} Bxd4 {[%emt 0:00:11]} 25. Nxd4 {[%emt 0:00:02]} Rxc4 {[%emt 0:00:01]} 26. Rb6 {[%emt 0:00:02]} a5 {[%emt 0:00:03]} 27. Rxf6 {[%emt 0:00:15]} Rb8 {[%emt 0:00:01]} 28. Rc6 {[%emt 0:00:27]} Rxc6 {[%emt 0:00:04]} 29. Nxc6 {[%emt 0:00:00]} Rxb2 {[%emt 0:00:02]} 30. Nxa5 {[%emt 0:00:01]} Bc8 {[%emt 0:00:08]} 31. Nc6 {[%emt 0:00:12]} Bb7 {[%emt 0:00:00]} 32. Nd4 {[%emt 0:00:02]} Ba6 {[%emt 0:00:01]} 33. a5 {[%emt 0:00:03]} Kg7 {[%emt 0:00:06]} 34. Nc6 {[%emt 0:00:01]} Rb3 {[%emt 0:00:04]} 35. Nb4 {[%emt 0:00:01]} Bb7 {[%emt 0:00:00]} 36. a6 {[%emt 0:00:01]} Ba8 {[%emt 0:00:01]} 37. Rd1 {[%emt 0:00:11]} Rxc3 {[%emt 0:00:01]} 38. Rd8 {[%emt 0:00:01]} Rb3 {[%emt 0:00:06]} 39. Rb8 {[%emt 0:00:13]} Be4 {[%emt 0:00:05]} 40. f3 {[%emt 0:00:05]} Bd5 {[%emt 0:00:07]} 41. a7 {[%emt 0:00:01]} Ra3 {[%emt 0:00:04]} 42. Nxd5 {[%emt 0:00:02]} Rxa7 {[%emt 0:00:01]} 43. Rb6 {[%emt 0:00:01]} Rd7 {[%emt 0:00:01]} 44. Nf4 {[%emt 0:00:02]} Rd4 {[%emt 0:00:01]} 45. Nh5+ {[%emt 0:00:02]} Kf8 {[%emt 0:00:02]} 46. Nf6 {[%emt 0:00:02]} Kg7 {[%emt 0:00:01]} 47. Ne4 {[%emt 0:00:01]} Rd5 {[%emt 0:00:02]} 48. Rb7 {[%emt 0:00:02]} Kg6 {[%emt 0:00:01]} 49. Kf2 {[%emt 0:00:02]} Ra5 {[%emt 0:00:02]} 50. Rb6+ {[%emt 0:00:01]} Kg7 {[%emt 0:00:00]} 51. g4 {[%emt 0:00:01]} h6 {[%emt 0:00:01]} 52. Ng3 {[%emt 0:00:01]} Kh7 {[%emt 0:00:03]} 53. Nf5 {[%emt 0:00:01]} h5 {[%emt 0:00:01]} 54. Rh6+ {[%emt 0:00:01]} Kg8 {[%emt 0:00:01]} 55. Rxh5 {[%emt 0:00:01]} 1-0

[Event "RUS-ch Men Blitz 2019"]
[Site "Sochi"]
[Date "2019.10.17"]
[Round "5.4"]
[White "Vastrukhin, Oleg"]
[Black "Sakaev, Konstantin"]
[Result "0-1"]
[ECO "A06"]
[WhiteElo "2428"]
[BlackElo "2595"]
[Annotator "ChessBase"]
[PlyCount "94"]
[EventDate "2019.10.17"]
[EventType "swiss"]
[EventCountry "RUS"]
[SourceTitle "playchess.com"]
[Source "ChessBase"]
[SourceQuality "1"]
[TimeControl "180+2"]

1. g3 {[%emt 0:00:00]} d5 {[%emt 0:00:00]} 2. Nf3 {[%emt 0:00:02]} Nf6 {[%emt 0:00:02]} 3. Bg2 {[%emt 0:00:01]} c5 {[%emt 0:00:02]} 4. O-O {[%emt 0:00:02]} e6 {[%emt 0:00:01]} 5. d4 {[%emt 0:00:15]} cxd4 {[%emt 0:00:01]} 6. Nxd4 {[%emt 0:00:01]} e5 {[%emt 0:00:01]} 7. Nb3 {[%emt 0:00:01]} Be6 {[%emt 0:00:01]} 8. c4 {[%emt 0:00:11]} Nc6 {[%emt 0:00:05]} 9. cxd5 {[%emt 0:00:23]} Nxd5 {[%emt 0:00:15]} 10. Nc3 {[%emt 0:00:09]} Nxc3 {[%emt 0:00:07]} 11. Qxd8+ {[%emt 0:00:05]} Rxd8 {[%emt 0:00:21]} 12. bxc3 {[%emt 0:00:02]} Bd5 {[%emt 0:00:00]} 13. Be3 {[%emt 0:00:15]} Bxg2 {[%emt 0:00:03]} 14. Kxg2 {[%emt 0:00:01]} Ba3 {[%emt 0:00:14]} 15. Rab1 {[%emt 0:00:02]} b6 {[%emt 0:00:24]} 16. Nd2 {[%emt 0:00:05]} Na5 {[%emt 0:00:10]} 17. Rb5 {[%emt 0:00:18]} f6 {[%emt 0:00:02]} 18. Ne4 {[%emt 0:00:28]} Kd7 {[%emt 0:00:09]} 19. g4 {[%emt 0:00:09]} Kc6 {[%emt 0:00:01]} 20. Rfb1 {[%emt 0:00:08]} Rd5 {[%emt 0:00:20]} 21. Rxd5 {[%emt 0:00:23]} Kxd5 {[%emt 0:00:01]} 22. Rd1+ {[%emt 0:00:04]} Kc6 {[%emt 0:00:31]} 23. h4 {[%emt 0:00:01]} Nc4 {[%emt 0:00:02]} 24. h5 {[%emt 0:00:04]} Be7 {[%emt 0:00:07]} 25. Kf3 {[%emt 0:00:09]} a5 {[%emt 0:00:08]} 26. Ng3 {[%emt 0:00:02]} Rc8 {[%emt 0:00:18]} 27. Nf5 Bf8 28. g5 {[%emt 0:00:12]} Nxe3 {[%emt 0:00:03]} 29. Kxe3 {[%emt 0:00:06]} fxg5 30. Ke4 Kb5 {[%emt 0:00:04]} 31. Rd7 {[%emt 0:00:12]} Rxc3 {[%emt 0:00:07]} 32. Nxg7 {[%emt 0:00:03]} Rc2 {[%emt 0:00:06]} 33. Ne6 {[%emt 0:00:02]} Bc5 {[%emt 0:00:07]} 34. Nxc5 {[%emt 0:00:05]} bxc5 {[%emt 0:00:01]} 35. Ke3 {[%emt 0:00:03]} h6 {[%emt 0:00:05]} 36. Rd6 {[%emt 0:00:04]} Rxa2 {[%emt 0:00:01]} 37. Rxh6 {[%emt 0:00:01]} Ra3+ {[%emt 0:00:01]} 38. Ke4 {[%emt 0:00:01]} Rh3 {[%emt 0:00:01]} 39. Kxe5 {[%emt 0:00:03]} a4 {[%emt 0:00:00]} 40. Rh8 {[%emt 0:00:01]} a3 {[%emt 0:00:01]} 41. e4 {[%emt 0:00:02]} Kb4 {[%emt 0:00:05]} 42. Kf5 {[%emt 0:00:03]} a2 {[%emt 0:00:02]} 43. Ra8 {[%emt 0:00:01]} Ra3 {[%emt 0:00:01]} 44. Rb8+ {[%emt 0:00:03]} Kc4 {[%emt 0:00:00]} 45. h6 {[%emt 0:00:02]} a1=Q {[%emt 0:00:02]} 46. h7 {[%emt 0:00:01]} Rh3 {[%emt 0:00:01]} 47. Kg6 {[%emt 0:00:04]} Qe5 {[%emt 0:00:03]} 0-1

[Event "RUS-ch Men Blitz 2019"]
[Site "Sochi"]
[Date "2019.10.20"]
[Round "5.4"]
[White "Apryshko, Gleb"]
[Black "Bocharov, Dmitry"]
[Result "1-0"]
[ECO "A00"]
[WhiteElo "2382"]
[BlackElo "2519"]
[Annotator "ChessBase"]
[PlyCount "68"]
[EventDate "2019.10.17"]
[EventType "swiss"]
[EventCountry "RUS"]
[SourceTitle "playchess.com"]
[Source "ChessBase"]
[SourceQuality "1"]
[TimeControl "180+2"]

1. g3 {[%emt 0:00:00]} c5 {[%emt 0:00:00]} 2. Bg2 {[%emt 0:00:00]} g6 {[%emt 0:00:02]} 3. c3 {[%emt 0:00:01]} Nf6 {[%emt 0:00:05]} 4. d4 {[%emt 0:00:02]} Bg7 {[%emt 0:00:01]} 5. Nf3 {[%emt 0:00:04]} O-O {[%emt 0:00:05]} 6. O-O {[%emt 0:00:02]} b6 {[%emt 0:00:11]} 7. Ne5 {[%emt 0:00:05]} d5 {[%emt 0:00:03]} 8. a4 {[%emt 0:00:14]} Bb7 {[%emt 0:00:06]} 9. a5 {[%emt 0:00:03]} Nfd7 {[%emt 0:00:04]} 10. f4 {[%emt 0:00:16]} Nxe5 {[%emt 0:00:18]} 11. fxe5 {[%emt 0:00:01]} bxa5 {[%emt 0:00:02]} 12. Qb3 {[%emt 0:00:13]} Qb6 {[%emt 0:00:36]} 13. Bxd5 {[%emt 0:00:40]} Bxd5 {[%emt 0:00:02]} 14. Qxd5 {[%emt 0:00:00]} cxd4 {[%emt 0:00:01]} 15. cxd4 {[%emt 0:00:02]} Nc6 {[%emt 0:00:03]} 16. e3 {[%emt 0:00:04]} e6 {[%emt 0:00:18]} 17. Qg2 {[%emt 0:00:12]} Nb4 {[%emt 0:00:07]} 18. Bd2 {[%emt 0:00:21]} Rac8 {[%emt 0:00:16]} 19. Bc3 {[%emt 0:00:10]} Nd5 {[%emt 0:00:05]} 20. Qe2 {[%emt 0:00:17]} Bh6 {[%emt 0:00:02]} 21. e4 {[%emt 0:00:07]} Nb4 {[%emt 0:00:10]} 22. Na3 {[%emt 0:00:11]} Nc6 {[%emt 0:00:01]} 23. Qf2 {[%emt 0:00:06]} Nxe5 {[%emt 0:00:06]} 24. Nc2 {[%emt 0:00:18]} Nc6 {[%emt 0:00:09]} 25. d5 {[%emt 0:00:05]} exd5 {[%emt 0:00:04]} 26. exd5 {[%emt 0:00:02]} Ne7 {[%emt 0:00:06]} 27. Bd4 {[%emt 0:00:08]} Qd6 {[%emt 0:00:14]} 28. Rxa5 {[%emt 0:00:05]} Nf5 {[%emt 0:00:10]} 29. Bxa7 {[%emt 0:00:03]} Qc7 {[%emt 0:00:05]} 30. Bc5 {[%emt 0:00:05]} Qxa5 {[%emt 0:00:03]} 31. Bxf8 {[%emt 0:00:02]} Rxf8 32. b4 Qxd5 {[%emt 0:00:04]} 33. Rb1 {[%emt 0:00:04]} Qe4 {[%emt 0:00:03]} 34. b5 {[%emt 0:00:01]} Be3 {[%emt 0:00:01]} 1-0

[Event "RUS-ch Men Blitz 2019"]
[Site "Sochi"]
[Date "2019.10.17"]
[Round "5.5"]
[White "Rublevsky, Sergei"]
[Black "Nesterov, Arseniy"]
[Result "1-0"]
[ECO "C45"]
[WhiteElo "2651"]
[BlackElo "2484"]
[Annotator "RC"]
[PlyCount "67"]
[EventDate "2019.10.17"]
[EventType "swiss"]
[EventCountry "RUS"]
[SourceTitle "playchess.com"]
[Source "ChessBase"]
[SourceQuality "1"]
[TimeControl "180+2"]

1. e4 {[%emt 0:00:00]} e5 {[%emt 0:00:00]} 2. Nf3 {[%emt 0:00:02]} Nc6 {[%emt 0:00:00]} 3. d4 {[%emt 0:00:01]} exd4 {[%emt 0:00:02]} 4. Nxd4 {[%emt 0:00:02]} Bc5 {[%emt 0:00:02]} 5. Be3 {[%emt 0:00:02]} Qf6 {[%emt 0:00:05]} 6. c3 {[%emt 0:00:01]} Nge7 {[%emt 0:00:05]} 7. Qd2 {[%emt 0:00:01]} Bb6 {[%emt 0:00:43]} 8. Nb5 {[%emt 0:00:07]} Ba5 {[%emt 0:00:32]} 9. N1a3 {[%emt 0:00:29]} a6 {[%emt 0:00:13]} 10. Nd4 {[%emt 0:00:01]} b5 {[%emt 0:00:43]} 11. Be2 {[%emt 0:00:20]} Nxd4 {[%emt 0:00:20]} 12. Bxd4 {[%emt 0:00:02]} Qg6 {[%emt 0:00:01]} 13. O-O {[%emt 0:00:07]} O-O {[%emt 0:00:07]} 14. Nc2 {[%emt 0:00:25]} Bb7 {[%emt 0:00:09]} 15. f3 {[%emt 0:00:11]} d6 {[%emt 0:00:11]} 16. b4 {[%emt 0:00:02]} Bb6 {[%emt 0:00:03]} 17. Bxb6 {[%emt 0:00:02]} cxb6 {[%emt 0:00:01]} 18. Ne3 {[%emt 0:00:01]} Rfd8 {[%emt 0:00:06]} 19. Qd4 {[%emt 0:00:07]} d5 {[%emt 0:00:01]} 20. e5 {[%emt 0:00:04]} Rac8 {[%emt 0:00:04]} 21. Rac1 {[%emt 0:00:08]} Rc6 {[%emt 0:00:08]} 22. f4 {[%emt 0:00:04]} Nf5 {[%emt 0:00:01]} 23. Nxf5 {[%emt 0:00:04]} Qxf5 {[%emt 0:00:01]} 24. Bd3 {[%emt 0:00:05]} Qd7 {[%emt 0:00:01]} 25. f5 {[%emt 0:00:03]} Rdc8 {[%emt 0:00:03]} 26. f6 {[%emt 0:00:03]} g6 {[%emt 0:00:04]} 27. Qf4 {[%emt 0:00:08]} Qe8 {[%emt 0:00:01]} 28. Qd4 {[%emt 0:00:08]} Re6 {[%emt 0:00:03]} 29. Rfe1 {[%emt 0:00:05]} Rec6 {[%emt 0:00:01]} 30. Re3 {[%emt 0:00:03]} Rc4 {[%emt 0:00:02]} 31. Bxc4 {[%emt 0:00:03]} Rxc4 {[%emt 0:00:01]} 32. Qd2 {[%emt 0:00:05]} Qc6 {[%emt 0:00:03]} 33. Rg3 {[%emt 0:00:12]} d4 {[%emt 0:00:01]} 34. Qh6 {[%emt 0:00:02]} 1-0